{"text_format":"1","workbook":"xlsx","n_sheets":2,"sheets":["Лист1","Лист1 (2)"],"not_rendered":{"charts":0,"images":0,"macros":1,"external_links":0,"defined_names":2,"comments":0,"pivot_tables":0},"unopened":[],"bounds":{"document_bytes":16777216,"sheet_cells":100000,"rows_first":2000,"rows_last":500,"rows_between":2000,"halvings":0,"cell_chars":16384,"cell_head_chars":4096},"cells_cut":0,"cells_raw":0,"read":"whole","date_system":"1900"}

{"sheet":"Лист1","index":0,"n_rows":32,"n_cols":4,"rows_kept":32,"cut":false,"hidden":false,"merged":[]}
[null,null,"совпад","совпад (зеркало)"]
["Название товара (это нужно импортировать)","Название товара (это назначение для импорта)"]
["CASIO Privia PX-870WE","CASIO PX-160 BK",{"$f":"arxon(B3,$A$3:$A$31)","v":"CASIO Privia PX-160BK"},{"$f":"arxon(A3,$B$3:$B$31)","v":""}]
["CASIO Privia PX-5S WE","CASIO PX-160 WE",{"$f":"arxon(B4,$A$3:$A$31)","v":"CASIO Privia PX-160WE"},{"$f":"arxon(A4,$B$3:$B$31)","v":""}]
["CASIO Privia PX-870BK","CASIO PX-160 GD","",""]
["CASIO Privia PX-870BN","CASIO PX-760 BN","",""]
["CASIO Celviano AP-460BK","CASIO PX-350MBK","",""]
["CASIO PRIVIA PX-360MBK","CASIO PX-350MWE","",""]
["CASIO Celviano AP-270WE","CASIO PX-5s","",""]
["CASIO Celviano AP-270BN","CASIO PX-5s","",""]
["CASIO Celviano AP-270BK","CASIO PX-760 BK","",""]
["CASIO Privia PX-770WE","CASIO PX-760 BK","",""]
["CASIO Privia PX-770BK","CASIO CS-55PH3","",""]
["CASIO Privia PX-770BN","CASIO CS-65PH7","",""]
["CASIO Celviano AP-460BN","CASIO CS-65","",""]
["CASIO MZ-X500","CASIO CS-67PWE","",""]
["CASIO CDP-S350BK","CASIO SP-20h","CASIO SP-20H",""]
["CASIO Privia PX-160BK","CASIO SP-33","CASIO SP-33",""]
["CASIO Privia PX-160WE","CASIO SP-30","",""]
["CASIO CS-46P","CASIO AD-12","",""]
["CASIO SA-78",null,null,""]
["CASIO SA-76",null,null,""]
["CASIO SA-77",null,null,""]
["CASIO CS-44",null,null,""]
["CASIO SA-47",null,null,""]
["CASIO SA-46",null,null,""]
["CASIO SP-33",null,null,"CASIO SP-33"]
["CASIO SP-20H",null,null,"CASIO SP-20h"]
["CASIO SP-3 H",null,null,""]
["CASIO AD-A12150LW",null,null,""]
["CASIO AD-E95100LG-P1-OP1",null,null,""]
[null,null,null,"CASIO PX-160 BK"]

{"sheet":"Лист1 (2)","index":1,"n_rows":31,"n_cols":3,"rows_kept":31,"cut":false,"hidden":false,"merged":[]}
[null,null,"совпад"]
["Название товара (это назначение для импорта)","Название товара (это нужно импортировать)"]
["CASIO PX-160 BK","CASIO Privia PX-870WE",{"$f":"arxon(B3,$A$3:$A$31)","v":""}]
["CASIO PX-160 WE","CASIO Privia PX-5S WE",{"$f":"arxon(B4,$A$3:$A$31)","v":""}]
["CASIO PX-160 GD","CASIO Privia PX-870BK",""]
["CASIO PX-760 BN","CASIO Privia PX-870BN",""]
["CASIO PX-350MBK","CASIO Celviano AP-460BK",""]
["CASIO PX-350MWE","CASIO PRIVIA PX-360MBK",""]
["CASIO PX-5s","CASIO Celviano AP-270WE",""]
["CASIO PX-5s","CASIO Celviano AP-270BN",""]
["CASIO PX-760 BK","CASIO Celviano AP-270BK",""]
["CASIO PX-760 BK","CASIO Privia PX-770WE",""]
["CASIO CS-55PH3","CASIO Privia PX-770BK",""]
["CASIO CS-65PH7","CASIO Privia PX-770BN",""]
["CASIO CS-65","CASIO Celviano AP-460BN",""]
["CASIO CS-67PWE","CASIO MZ-X500",""]
["CASIO SP-20h","CASIO CDP-S350BK",""]
["CASIO SP-33","CASIO Privia PX-160BK",""]
["CASIO SP-30","CASIO Privia PX-160WE",""]
["CASIO AD-12","CASIO CS-46P",""]
[null,"CASIO SA-78",""]
[null,"CASIO SA-76",""]
[null,"CASIO SA-77",""]
[null,"CASIO CS-44",""]
[null,"CASIO SA-47",""]
[null,"CASIO SA-46",""]
[null,"CASIO SP-33",{"$f":"arxon(B27,$A$3:$A$31)","v":"CASIO SP-33"}]
[null,"CASIO SP-20H","CASIO SP-20h"]
[null,"CASIO SP-3 H",""]
[null,"CASIO AD-A12150LW",""]
[null,"CASIO AD-E95100LG-P1-OP1",""]